bitfinex/quotes_BTCUSD_20250129
["timestamp","ask_amount","ask_price","bid_price","bid_amount"]
[1738147579793,0.91926446,102590.0,102580.0,0.01014585]
[1738147580004,0.92126446,102590.0,102580.0,0.01010029]
[1738147580348,0.92426446,102590.0,102580.0,0.01010029]
[1738147583359,0.86673504,102590.0,102580.0,0.01010029]
[1738147584932,0.86673504,102590.0,102580.0,0.01024259]
[1738147585133,0.88673504,102590.0,102580.0,0.01024259]
[1738147586587,0.94426446,102590.0,102580.0,0.01024259]
[1738147588901,0.043,102580.0,102570.0,0.00029862]
[1738147589114,0.329241,102570.0,102560.0,0.00029862]
[1738147589344,0.55171358,102570.0,102560.0,0.00039361]
[1738147589572,0.678343,102570.0,102560.0,0.00039361]
[1738147590036,0.62081358,102570.0,102560.0,0.00087697]
[1738147590997,0.62381358,102570.0,102560.0,0.00087697]
[1738147591228,0.16,102550.0,102530.0,0.1239]
[1738147591449,0.30105658,102540.0,102530.0,0.04814834]
[1738147591690,0.30105658,102540.0,102530.0,4.834e-05]
[1738147592613,0.30105658,102540.0,102530.0,0.00017664]
[1738147593244,0.39841334,102540.0,102530.0,0.00017664]
[1738147593470,0.39841334,102540.0,102530.0,0.00217664]
[1738147593685,0.40941334,102540.0,102530.0,0.00917664]
[1738147594360,0.57292716,102540.0,102530.0,0.00917664]
[1738147594822,0.475684,102540.0,102530.0,0.33760406]
[1738147595280,0.512944,102540.0,102530.0,0.33760406]
[1738147596595,0.512944,102540.0,102530.0,0.34295985]
[1738147596807,0.512944,102540.0,102530.0,0.34310215]
[1738147597032,0.51324283,102540.0,102530.0,0.34310215]
[1738147597282,0.51324283,102540.0,102530.0,0.19680415]
[1738147597512,0.51324283,102540.0,102530.0,0.13927473]
[1738147598414,0.18484283,102540.0,102530.0,0.13927473]
[1738147601287,0.18484283,102540.0,102530.0,0.01467473]
[1738147601956,0.37944275,102540.0,102530.0,0.01467473]
[1738147602360,0.28208599,102540.0,102530.0,0.01467473]
[1738147606899,0.18484283,102540.0,102530.0,0.20617273]
[1738147607097,0.18484283,102540.0,102530.0,0.37531595]
[1738147607307,0.03855883,102540.0,102530.0,0.37531595]
[1738147607944,0.03855883,102540.0,102530.0,0.86169727]
[1738147611145,0.03855883,102540.0,102530.0,0.37531595]
[1738147611793,0.03855883,102540.0,102530.0,0.28757273]
[1738147615462,0.03855883,102540.0,102530.0,0.37531595]
[1738147616176,0.03855883,102540.0,102530.0,0.86169727]
[1738147621840,0.03855883,102540.0,102530.0,0.37531595]
[1738147628607,0.03855883,102540.0,102530.0,0.3451349]
[1738147629464,0.03855883,102540.0,102530.0,0.64994023]
[1738147629673,0.03855883,102540.0,102530.0,0.68027314]
[1738147630704,0.03855883,102540.0,102530.0,0.70327314]
[1738147631515,0.03855883,102540.0,102530.0,0.70127314]
[1738147632176,0.03755883,102540.0,102530.0,0.69427314]
[1738147632674,0.03755883,102540.0,102530.0,0.67583847]
[1738147633015,0.03755883,102540.0,102530.0,0.67883847]
[1738147635557,0.03755883,102540.0,102530.0,0.65583847]
[1738147635995,0.03755883,102540.0,102530.0,0.5766688]
[1738147636214,0.18384283,102540.0,102530.0,0.32249273]
[1738147637498,0.18384283,102540.0,102530.0,0.31397273]
[1738147639721,0.03755883,102540.0,102530.0,0.31397273]
[1738147640137,0.03755883,102540.0,102530.0,0.4016624]
[1738147641618,0.03755883,102540.0,102530.0,0.31397273]
[1738147641955,0.18384283,102540.0,102530.0,0.31397273]
[1738147644867,0.03755883,102540.0,102530.0,0.31397273]
[1738147645076,0.18384283,102540.0,102530.0,0.31397273]
[1738147649143,0.03755883,102540.0,102530.0,0.31397273]
[1738147649565,0.18384283,102540.0,102530.0,0.31397273]
[1738147651671,0.03755883,102540.0,102530.0,0.62310556]
[1738147651891,0.03755883,102540.0,102530.0,0.65337527]
[1738147655905,0.03755883,102540.0,102530.0,0.67637527]
[1738147656189,0.03755883,102540.0,102530.0,0.69625087]
[1738147658440,0.03755883,102540.0,102530.0,0.69675087]
[1738147659121,0.03755883,102540.0,102530.0,0.78444054]
[1738147659803,8.3e-07,102540.0,102530.0,0.78444054]
[1738147660011,8.3e-07,102540.0,102530.0,0.79296054]
[1738147663033,0.04884565,102540.0,102530.0,0.79296054]
[1738147664403,0.00983565,102540.0,102530.0,0.79296054]
[1738147665053,0.01013448,102540.0,102530.0,0.79296054]
[1738147667747,0.01013448,102540.0,102530.0,0.78396054]
[1738147667960,0.01013448,102540.0,102530.0,0.78196054]
[1738147670163,4.8e-07,102540.0,102530.0,0.78196054]
[1738147673662,4.8e-07,102540.0,102530.0,0.78192054]
[1738147676236,4.8e-07,102540.0,102530.0,0.89192054]
[1738147676439,4.8e-07,102540.0,102530.0,0.89292054]
[1738147677319,4.8e-07,102540.0,102530.0,0.89192054]
[1738147677746,4.8e-07,102540.0,102530.0,0.89592054]
[1738147678217,0.1257922,102580.0,102570.0,0.146241]
[1738147678442,0.1257922,102580.0,102570.0,1.87335769]
[1738147678657,0.17364482,102580.0,102570.0,1.88033314]
[1738147678914,0.04884482,102580.0,102570.0,1.90333314]
[1738147679543,0.04884482,102580.0,102570.0,1.90433314]
[1738147681076,0.04884482,102580.0,102570.0,1.8990341]
[1738147681282,0.04884482,102580.0,102570.0,1.9040341]
[1738147682095,0.04884482,102580.0,102570.0,1.90795014]
[1738147682760,0.04884482,102580.0,102570.0,1.92788457]
[1738147683474,0.04884482,102580.0,102570.0,1.93636457]
[1738147683681,0.04884482,102580.0,102570.0,1.79726047]
[1738147683892,0.04884482,102580.0,102570.0,1.80574047]
[1738147683893,0.17074482,102580.0,102570.0,1.80574047]
[1738147685704,0.17074482,102580.0,102570.0,1.89343014]
[1738147685909,0.17074482,102580.0,102570.0,1.90327849]
[1738147688687,0.17104365,102580.0,102570.0,1.90327849]
[1738147688951,0.04914365,102580.0,102570.0,2.05197849]
[1738147689124,0.04914365,102580.0,102570.0,2.40410775]
[1738147689331,0.04914365,102580.0,102570.0,2.42410775]
[1738147689970,0.04914365,102580.0,102570.0,2.42310775]
[1738147690252,0.04914365,102580.0,102570.0,2.42610775]
[1738147690642,0.04914365,102580.0,102570.0,2.42110775]
[1738147690882,0.04914365,102580.0,102570.0,2.42910775]
[1738147692574,0.04914365,102580.0,102570.0,2.4487908]
[1738147693556,0.04914365,102580.0,102570.0,2.7707908]
[1738147694159,0.04804365,102580.0,102570.0,2.7707908]
[1738147695347,0.04804365,102580.0,102570.0,2.5757108]
[1738147695557,0.04804365,102580.0,102570.0,2.5841908]
[1738147697234,0.04804365,102580.0,102570.0,2.5641908]
[1738147698881,0.04804365,102580.0,102570.0,2.5150908]
[1738147705240,0.04804365,102580.0,102570.0,2.5066108]
[1738147705466,0.04804365,102580.0,102570.0,2.5150908]
[1738147708448,0.04804365,102580.0,102570.0,1.53259661]
[1738147711368,0.04804365,102580.0,102570.0,1.53273891]
[1738147714073,0.04804365,102580.0,102570.0,1.52425891]
[1738147714288,0.04804365,102580.0,102570.0,1.53273891]
[1738147718666,0.04804365,102580.0,102570.0,1.47233493]
[1738147721733,0.04804365,102580.0,102570.0,1.46385493]
[1738147721926,0.04804365,102580.0,102570.0,1.47233493]
[1738147731261,0.12664365,102580.0,102570.0,1.41484725]
[1738147731768,0.12664365,102580.0,102570.0,1.47233493]
[1738147732975,0.12664365,102580.0,102570.0,1.45265188]
[1738147734066,0.17374365,102580.0,102570.0,0.8382642]
[1738147734499,0.17374365,102580.0,102570.0,0.89575188]
[1738147736325,0.17374365,102580.0,102570.0,0.8382642]
[1738147745649,0.17374365,102580.0,102570.0,0.89575188]
[1738147746581,0.17374365,102580.0,102570.0,0.8382642]
[1738147748215,0.17374365,102580.0,102570.0,0.89575188]
[1738147748802,0.17374365,102580.0,102570.0,0.8382642]
[1738147749697,0.17374365,102580.0,102570.0,0.8297842]
[1738147749899,0.17374365,102580.0,102570.0,0.41054104]
[1738147749900,0.31997065,102580.0,102570.0,0.41054104]
[1738147750078,0.17374365,102580.0,102570.0,0.41054104]
[1738147750216,0.17374365,102580.0,102570.0,0.38031178]
[1738147757175,0.17374365,102580.0,102570.0,0.37046343]
[1738147758469,1.17374365,102580.0,102570.0,0.37046343]
[1738147761958,1.17374365,102580.0,102570.0,0.38016796]
[1738147762304,1.17374365,102580.0,102570.0,0.43765564]
[1738147762890,1.17374365,102580.0,102570.0,0.5348988]
[1738147764916,1.17374365,102580.0,102570.0,0.8568988]
[1738147769194,1.17374365,102580.0,102570.0,0.79941112]
[1738147770680,1.17374365,102580.0,102570.0,0.82970262]
[1738147775998,1.31997065,102580.0,102570.0,0.72275493]
[1738147776206,1.31997065,102580.0,102570.0,0.69246343]
[1738147776620,1.31997065,102580.0,102570.0,0.16673475]
[1738147777092,1.31997065,102580.0,102570.0,0.22046343]
[1738147777500,1.31997065,102580.0,102570.0,0.07122243]
[1738147777781,1.31997065,102580.0,102570.0,0.07222243]
[1738147778291,1.31997065,102580.0,102570.0,0.06422243]
[1738147778496,1.31997065,102580.0,102570.0,0.06922243]
[1738147779071,1.31997065,102580.0,102570.0,0.21546343]
[1738147779273,1.31997065,102580.0,102570.0,0.06922243]
[1738147780421,1.31997065,102580.0,102570.0,0.21546343]
[1738147781601,1.31997065,102580.0,102570.0,0.06922243]
[1738147782212,0.31997065,102580.0,102570.0,0.06922243]
[1738147783208,0.31997065,102580.0,102570.0,0.21546343]
[1738147783613,0.31997065,102580.0,102570.0,0.06922243]
[1738147785638,0.31997065,102580.0,102570.0,0.06915259]
[1738147787574,0.31997065,102580.0,102570.0,0.21539359]
[1738147790129,0.32001591,102580.0,102570.0,0.21539359]
[1738147791216,0.31997065,102580.0,102570.0,0.21534833]
[1738147795265,0.31997065,102580.0,102570.0,0.06910733]
[1738147796297,0.31997065,102580.0,102570.0,0.21534833]
[1738147802065,0.31997065,102580.0,102570.0,0.21950374]
[1738147809035,0.04804365,102580.0,102570.0,0.3167469]
[1738147809236,0.04804365,102580.0,102570.0,0.37423458]
[1738147809659,0.04804365,102580.0,102570.0,0.63275014]
[1738147812340,0.04804365,102580.0,102570.0,0.95475014]
[1738147813708,0.04804365,102580.0,102570.0,0.96451561]
[1738147828997,0.04804365,102580.0,102570.0,1.04500329]
[1738147829210,0.04804365,102580.0,102570.0,1.09577069]
[1738147830012,0.04804365,102580.0,102570.0,1.09477069]
[1738147830363,0.04804365,102580.0,102570.0,1.09277069]
[1738147830536,0.04804365,102580.0,102570.0,1.10077069]
[1738147831693,0.04804365,102580.0,102570.0,1.09504788]
[1738147833322,0.04804365,102580.0,102570.0,0.77304788]
[1738147834660,0.04804365,102580.0,102570.0,0.53067252]
[1738147834864,0.04804365,102580.0,102570.0,0.35767252]
[1738147835067,0.13094365,102580.0,102570.0,0.33910262]
[1738147835302,0.13094365,102580.0,102570.0,0.48737665]
[1738147836218,0.13094365,102580.0,102570.0,0.48910154]
[1738147836797,0.13094365,102580.0,102570.0,0.48737665]
[1738147837364,0.13094365,102580.0,102570.0,0.54658922]
[1738147837991,0.04804365,102580.0,102570.0,0.57687157]
[1738147838422,0.04804365,102580.0,102570.0,0.59987157]
[1738147839102,0.04804365,102580.0,102570.0,0.92187157]
[1738147839735,0.04804365,102580.0,102570.0,0.89887157]
[1738147840557,0.04804365,102580.0,102570.0,0.95914647]
[1738147841104,0.04804365,102580.0,102570.0,0.95742422]
[1738147841283,0.04804365,102580.0,102570.0,0.95914963]
[1738147845733,0.04804365,102580.0,102570.0,0.98214963]
[1738147845939,0.04804365,102580.0,102570.0,1.06194963]
[1738147847151,0.04804365,102580.0,102570.0,1.06022422]
[1738147847352,0.04804365,102580.0,102570.0,1.05864189]
[1738147848758,0.04804365,102580.0,102570.0,1.61169509]
[1738147859047,0.04804365,102580.0,102570.0,1.52345509]
[1738147859288,0.04804365,102580.0,102570.0,1.53225509]
[1738147860046,0.17664365,102580.0,102570.0,1.50045509]
[1738147860276,0.17664365,102580.0,102570.0,1.50925509]
[1738147860489,0.17664365,102580.0,102570.0,1.49010189]
[1738147861113,0.17664365,102580.0,102570.0,1.48130189]
[1738147861304,0.17664365,102580.0,102570.0,1.49010189]
[1738147861717,0.17664365,102580.0,102570.0,0.94740189]
[1738147861937,0.17664365,102580.0,102570.0,0.71857676]
[1738147862152,0.17664365,102580.0,102570.0,0.71865676]
[1738147862357,0.17664365,102580.0,102570.0,0.67949441]
[1738147862572,0.17664365,102580.0,102570.0,0.83853441]
[1738147862802,0.17664365,102580.0,102570.0,0.57248578]
[1738147863431,0.17664365,102580.0,102570.0,0.72248578]
[1738147867672,0.17664365,102580.0,102570.0,0.72571312]
[1738147869964,0.32287065,102580.0,102570.0,0.72571312]
[1738147870981,0.17664365,102580.0,102570.0,0.72571312]
[1738147871393,0.32287065,102580.0,102570.0,0.72571312]
[1738147875329,0.17664365,102580.0,102570.0,0.72571312]
[1738147878761,0.32287065,102580.0,102570.0,0.63808799]
[1738147879354,0.4088013,102580.0,102570.0,0.16984699]
[1738147879564,0.4088013,102580.0,102570.0,0.01984699]
[1738147879767,0.32287065,102580.0,102570.0,0.01984699]
[1738147879934,0.32287065,102580.0,102570.0,0.16608799]
[1738147880135,0.32287065,102580.0,102570.0,0.16308799]
[1738147880445,0.32287065,102580.0,102570.0,0.15508799]
[1738147880675,0.32287065,102580.0,102570.0,0.16108799]
[1738147881279,0.32287065,102580.0,102570.0,0.16008799]
[1738147881478,0.32287065,102580.0,102570.0,0.16108799]
[1738147881672,0.32287065,102580.0,102570.0,0.24871312]
[1738147882729,0.32287065,102580.0,102570.0,0.16108799]
[1738147885113,0.32287065,102580.0,102570.0,0.01484699]
[1738147886647,0.32287065,102580.0,102570.0,0.07237176]
[1738147886975,0.32287065,102580.0,102570.0,0.21861276]
[1738147891575,0.32287065,102580.0,102570.0,0.22029967]
[1738147891779,0.32287065,102580.0,102570.0,0.07405867]
[1738147892005,0.32287065,102580.0,102570.0,0.0165339]
[1738147892159,0.32287065,102580.0,102570.0,0.07135786]
[1738147893202,0.4088013,102580.0,102570.0,0.01383309]
[1738147893407,0.32287065,102580.0,102570.0,0.01383309]
[1738147905996,0.32287065,102580.0,102570.0,0.07135786]
[1738147907647,0.32287065,102580.0,102570.0,0.01383309]
[1738147908092,0.32287065,102580.0,102570.0,0.07135786]
[1738147908823,0.32287065,102580.0,102570.0,0.01383309]
[1738147926313,0.51747057,102580.0,102570.0,0.01330656]
[1738147926517,0.42011381,102580.0,102570.0,0.01330656]
[1738147928729,0.42011381,102580.0,102570.0,0.01230656]
[1738147928930,0.42011381,102580.0,102570.0,0.00730656]
[1738147929452,0.43937733,102580.0,102570.0,0.00930656]
[1738147942966,0.31077733,102580.0,102570.0,0.00930656]
[1738147945125,0.39367733,102580.0,102570.0,0.00930656]
[1738147960603,0.39367733,102580.0,102570.0,0.00730656]
[1738147961014,0.49203409,102580.0,102570.0,0.00730656]
[1738147961470,1.49203409,102580.0,102570.0,0.00730656]
[1738147963900,1.53753409,102580.0,102570.0,0.00730656]
[1738147964514,1.62524717,102580.0,102570.0,0.00730656]
[1738147965537,1.62524717,102580.0,102570.0,0.00441885]
[1738147966947,1.85629041,102580.0,102570.0,0.00441885]
[1738147969152,1.85629041,102580.0,102570.0,0.00613744]
[1738147971123,1.85629041,102580.0,102570.0,0.0035478]
[1738147972769,1.85629041,102580.0,102570.0,0.00613743]
[1738147972950,1.85629041,102580.0,102570.0,0.0001423]
[1738147973153,1.85629041,102580.0,102570.0,0.00613803]
[1738147973308,1.85629041,102580.0,102570.0,0.0001423]
[1738147973530,1.85629041,102580.0,102570.0,0.00613803]
[1738147973745,1.85629041,102580.0,102570.0,0.0001423]
[1738147973969,1.85629041,102580.0,102570.0,0.00613803]
[1738147974183,1.85629041,102580.0,102570.0,0.0001423]
[1738147974387,1.85629041,102580.0,102570.0,0.00613803]
[1738147974586,1.85629041,102580.0,102570.0,0.0001423]
[1738147974786,1.85629041,102580.0,102570.0,0.00613803]
[1738147974995,1.85629041,102580.0,102570.0,0.0001423]
[1738147975197,1.85629041,102580.0,102570.0,0.00613803]
[1738147975392,1.85623704,102580.0,102570.0,0.0001423]
[1738147975905,1.85623704,102580.0,102570.0,0.00613803]
[1738147976110,1.85623704,102580.0,102570.0,0.0001423]
[1738147976315,1.85623704,102580.0,102570.0,0.00613803]
[1738147976535,1.85623704,102580.0,102570.0,0.0001423]
[1738147976722,1.85623704,102580.0,102570.0,0.00613803]
[1738147976861,1.85623704,102580.0,102570.0,0.0001423]
[1738147977078,1.85623704,102580.0,102570.0,0.00613803]
[1738147994061,1.95694793,102580.0,102570.0,0.00613803]
[1738147994274,2.0244727,102580.0,102570.0,0.00613803]
[1738147994484,1.96694793,102580.0,102570.0,0.00613803]
[1738147994694,2.0244727,102580.0,102570.0,0.00613803]
[1738147995113,2.0474727,102580.0,102570.0,0.00613803]
[1738147996943,2.0674727,102580.0,102570.0,0.00613803]
[1738147998681,1.8890727,102580.0,102570.0,0.00613803]
[1738147999094,1.74383485,102580.0,102570.0,0.00613803]
[1738148002115,1.63312396,102580.0,102570.0,0.00613803]
[1738148002320,1.64312396,102580.0,102570.0,0.00613803]
[1738148002938,1.63312396,102580.0,102570.0,0.00613803]
[1738148003119,1.46172396,102580.0,102570.0,0.00613803]
[1738148003352,1.48172396,102580.0,102570.0,0.00613803]
[1738148004406,1.53924873,102580.0,102570.0,0.00613803]
[1738148004757,1.48172396,102580.0,102570.0,0.00613803]
[1738148005382,1.58056072,102580.0,102570.0,0.00613803]
[1738148006380,1.48320396,102580.0,102570.0,0.00613803]
[1738148007694,1.57091013,102580.0,102570.0,0.00613803]
[1738148008450,1.89931013,102580.0,102570.0,0.00613803]
[1738148009257,1.87931013,102580.0,102570.0,0.00613803]
[1738148009452,1.89931013,102580.0,102570.0,0.00613803]
[1738148014141,1.89931013,102580.0,102570.0,0.00669282]
[1738148014911,1.99666689,102580.0,102570.0,0.00669282]
[1738148016456,1.89931013,102580.0,102570.0,0.00669282]
[1738148024818,1.74931013,102580.0,102570.0,0.00669282]
[1738148025022,1.72931013,102580.0,102570.0,0.00669282]
[1738148027031,1.72931013,102580.0,102570.0,0.08759282]
[1738148028822,1.71004661,102580.0,102570.0,0.08759282]
[1738148030090,1.61280345,102580.0,102570.0,0.08759282]
[1738148032304,1.28440345,102580.0,102570.0,0.08759282]
[1738148033145,1.19669728,102580.0,102570.0,0.08759282]
[1738148033944,1.40898998,102580.0,102570.0,0.00669282]
[1738148034170,1.42776521,102580.0,102570.0,0.00669282]
[1738148036107,1.48528998,102580.0,102570.0,0.00669282]
[1738148036356,1.65349615,102580.0,102570.0,0.00669282]
[1738148036566,1.82349615,102580.0,102570.0,0.00669282]
[1738148036777,1.92085291,102580.0,102570.0,0.00669282]
[1738148037042,1.92085291,102580.0,102570.0,8.2e-07]
[1738148037257,1.94837768,102580.0,102570.0,0.00261711]
[1738148037461,1.89085291,102580.0,102570.0,0.00486142]
[1738148037667,1.89085291,102580.0,102570.0,0.00706221]
[1738148037878,1.89085291,102580.0,102570.0,0.00239004]
[1738148038090,1.88985291,102580.0,102570.0,0.01313439]
[1738148038319,0.14627,102550.0,102540.0,0.0001423]
[1738148038547,0.24351316,102550.0,102540.0,0.00019064]
[1738148040427,0.24351316,102550.0,102540.0,0.00419064]
[1738148040745,0.24351316,102550.0,102540.0,0.00619064]
[1738148040979,0.24351316,102550.0,102540.0,0.00863773]
[1738148041965,0.14627,102550.0,102540.0,0.1157625]
[1738148042184,0.14627,102550.0,102540.0,0.3399465]
[1738148042801,0.14627,102550.0,102540.0,0.3379465]
[1738148043005,0.14627,102550.0,102540.0,0.3339465]
[1738148043450,0.14827,102550.0,102540.0,0.3339465]
[1738148043682,0.19597,102550.0,102540.0,0.3339465]
[1738148044195,0.19591834,102550.0,102540.0,0.13013773]
[1738148044627,0.19591834,102550.0,102540.0,0.28731906]
[1738148046576,0.19591834,102550.0,102540.0,0.29720087]
[1738148048017,0.19591834,102550.0,102540.0,0.28731906]
[1738148048657,0.0497,102550.0,102540.0,0.34484383]
[1738148048864,0.0497,102550.0,102540.0,0.83122515]
[1738148049715,0.0477,102550.0,102540.0,0.83122515]
[1738148050155,0.0497,102550.0,102540.0,0.83122515]
[1738148050357,0.0477,102550.0,102540.0,0.83122515]
[1738148050537,0.04764833,102550.0,102540.0,0.83122515]
[1738148051166,0.04764833,102550.0,102540.0,0.83222515]
[1738148052190,0.04764833,102550.0,102540.0,0.82888038]
[1738148058386,0.19391833,102550.0,102540.0,0.82888038]
[1738148058562,0.04764833,102550.0,102540.0,0.82888038]
[1738148066213,0.19391833,102550.0,102540.0,0.15747429]
[1738148066436,0.19391833,102550.0,102540.0,0.01119029]
[1738148067237,0.27504976,102550.0,102540.0,0.01119029]
[1738148067451,0.35484976,102550.0,102540.0,0.01119029]
[1738148067691,0.27401716,102550.0,102540.0,0.01119029]
[1738148072096,0.19421716,102550.0,102540.0,0.01119029]
[1738148075856,0.19421716,102550.0,102540.0,0.21499906]
[1738148076073,0.04794716,102550.0,102540.0,0.21499906]
[1738148076294,0.19421716,102550.0,102540.0,0.21833517]
[1738148076915,0.04794716,102550.0,102540.0,0.21833517]
[1738148077120,0.04794716,102550.0,102540.0,0.27585994]
[1738148077325,0.04794716,102550.0,102540.0,0.21833517]
[1738148077542,0.04794716,102550.0,102540.0,0.27585994]
[1738148078178,0.04794716,102550.0,102540.0,0.21833517]
[1738148080889,0.04794716,102550.0,102540.0,0.22794877]
[1738148082955,0.04794716,102550.0,102540.0,0.21833517]
[1738148083160,0.04794716,102550.0,102540.0,0.1608104]
[1738148084686,0.04794716,102550.0,102540.0,0.21833517]
[1738148085075,0.19421716,102550.0,102540.0,0.1608104]
[1738148085459,0.19421716,102550.0,102540.0,0.15747096]
[1738148085995,0.27351716,102550.0,102540.0,0.01118696]
[1738148100062,0.42828509,102550.0,102540.0,0.01118696]
[1738148100289,0.47748509,102550.0,102540.0,0.01118696]
[1738148100714,0.19421716,102550.0,102540.0,0.21499573]
[1738148100926,0.04794716,102550.0,102540.0,0.21499573]
[1738148101065,0.04794716,102550.0,102540.0,0.15747096]
[1738148101261,0.04794716,102550.0,102540.0,0.21499573]
[1738148102100,0.04794716,102550.0,102540.0,0.2725205]
[1738148102299,0.04794716,102550.0,102540.0,0.21499573]
[1738148112989,4.78500427,102540.0,102530.0,0.95584148]
[1738148113157,4.78500427,102540.0,102530.0,1.59703907]
[1738148114135,4.78500427,102540.0,102530.0,1.59903907]
[1738148115409,4.78500427,102540.0,102530.0,1.27703907]
[1738148115603,4.78500427,102540.0,102530.0,1.28003907]
[1738148118478,4.83264427,102540.0,102530.0,1.28003907]
[1738148120751,4.83264427,102540.0,102530.0,1.29078032]
[1738148122853,4.83264427,102540.0,102530.0,1.28242032]
[1738148123041,4.83264427,102540.0,102530.0,1.29074032]
[1738148123243,4.83264427,102540.0,102530.0,1.32114711]
[1738148125024,4.83264427,102540.0,102530.0,1.37867188]
[1738148125877,4.83264427,102540.0,102530.0,1.40167188]
[1738148126715,4.8329431,102540.0,102530.0,1.40167188]
[1738148128703,4.8329431,102540.0,102530.0,1.40352622]
[1738148132951,6.8329431,102540.0,102530.0,1.40352622]
[1738148137146,6.8329431,102540.0,102530.0,1.40315793]
[1738148139022,6.8329431,102540.0,102530.0,1.40330023]
[1738148143458,6.8329431,102540.0,102530.0,0.91691891]
[1738148143960,6.8329431,102540.0,102530.0,0.90859891]
[1738148144170,6.8329431,102540.0,102530.0,0.91691891]
[1738148147960,6.8329431,102540.0,102530.0,0.91691891]
[1738148153276,4.8329431,102540.0,102530.0,0.91691891]
[1738148154495,4.8329431,102540.0,102530.0,0.91331947]
[1738148155678,4.8329431,102540.0,102530.0,0.90499947]
[1738148155871,4.8329431,102540.0,102530.0,0.91331947]
[1738148157087,4.8329431,102540.0,102530.0,0.9165989]
[1738148160148,4.8329431,102540.0,102530.0,0.79282489]
[1738148174098,4.8329431,102540.0,102530.0,0.87382489]
[1738148177297,4.7354181,102540.0,102530.0,0.94134966]
[1738148177473,4.7354181,102540.0,102530.0,0.99064966]
[1738148178314,4.7354181,102540.0,102530.0,0.98764966]
[1738148178628,4.6964081,102540.0,102530.0,0.98764966]
[1738148179252,4.6964081,102540.0,102530.0,0.98564966]
[1738148180269,4.6964081,102540.0,102530.0,0.99464966]
[1738148182617,4.6573981,102540.0,102530.0,0.99464966]
[1738148183072,4.6573981,102540.0,102530.0,0.85612489]
[1738148183306,4.6573981,102540.0,102530.0,0.80682489]
[1738148183989,4.6573981,102540.0,102530.0,0.80678489]
[1738148184442,4.6573981,102540.0,102530.0,0.79850489]
[1738148184682,4.7369981,102540.0,102530.0,0.55798012]
[1738148184879,4.7853981,102540.0,102530.0,0.55453634]
[1738148185088,4.7853981,102540.0,102530.0,0.56281634]
[1738148185296,4.7853981,102540.0,102530.0,0.7167851]
[1738148185502,4.7853981,102540.0,102530.0,0.68637831]
[1738148187276,4.7853981,102540.0,102530.0,0.71679424]
[1738148188239,4.7853981,102540.0,102530.0,0.68637831]
[1738148188662,4.7853981,102540.0,102530.0,0.71678886]
[1738148188879,4.7853981,102540.0,102530.0,0.77431363]
[1738148189899,4.7853981,102540.0,102530.0,1.09631363]
[1738148201621,4.6378931,102540.0,102530.0,1.11931363]
[1738148201854,4.5598731,102540.0,102530.0,1.7934384]
[1738148202108,4.5598731,102540.0,102530.0,1.8034384]
[1738148202352,4.5598731,102540.0,102530.0,1.0475384]
[1738148202353,4.4279081,102540.0,102530.0,1.0475384]
[1738148202600,4.3661256,102540.0,102530.0,1.1127384]
[1738148202845,4.3309656,102540.0,102530.0,1.1127384]
[1738148203091,4.3309656,102540.0,102530.0,1.16455454]
[1738148203092,4.19506843,102540.0,102530.0,1.16455454]
[1738148203301,3.94778078,102540.0,102530.0,1.16255454]
[1738148203538,3.67990483,102540.0,102530.0,1.15555454]
[1738148203763,3.64110242,102540.0,102530.0,1.18148831]
[1738148203969,3.49507848,102540.0,102530.0,1.18148831]
[1738148204176,3.40505848,102540.0,102530.0,1.18248831]
[1738148204500,3.36462349,102540.0,102530.0,1.18248831]
[1738148204703,3.32887349,102540.0,102530.0,1.18248831]
[1738148204912,3.30555658,102540.0,102530.0,1.18248831]
[1738148205121,3.24808158,102540.0,102530.0,1.18248831]
[1738148205320,3.15792158,102540.0,102530.0,1.18248831]
[1738148205527,3.12393158,102540.0,102530.0,1.18248831]
[1738148205770,3.09993158,102540.0,102530.0,1.18248831]
[1738148205976,3.04872203,102540.0,102530.0,1.18148831]
[1738148206153,2.98565703,102540.0,102530.0,1.18348831]
[1738148206358,2.91228703,102540.0,102530.0,1.18348831]
[1738148206903,2.83013842,102540.0,102530.0,1.18348831]
[1738148207106,1.61824726,102540.0,102530.0,1.60270831]
[1738148207376,1.49244911,102540.0,102530.0,1.61098831]
[1738148207582,1.19979657,102540.0,102530.0,1.60270831]
[1738148207791,1.19979657,102540.0,102530.0,1.61098831]
[1738148207992,1.18029157,102540.0,102530.0,1.61098831]
[1738148208194,1.10227157,102540.0,102530.0,1.61098831]
[1738148208758,1.10227157,102540.0,102530.0,1.60898831]
[1738148208915,1.09245157,102540.0,102530.0,1.59005454]
[1738148209699,1.04905426,102540.0,102530.0,1.59005454]
[1738148209902,1.00421419,102540.0,102530.0,1.59005454]
[1738148212715,0.98470919,102540.0,102530.0,1.58177454]
[1738148212916,0.90668919,102540.0,102530.0,1.59005454]
[1738148213119,0.80916419,102540.0,102530.0,1.42267977]
[1738148213323,0.80916419,102540.0,102530.0,1.43095977]
[1738148213533,0.80916419,102540.0,102530.0,1.17305977]
[1738148214198,0.80916419,102540.0,102530.0,1.21605977]
[1738148214401,0.80916419,102540.0,102530.0,1.23605977]
[1738148215284,0.80916419,102540.0,102530.0,1.147255]
[1738148215488,0.80916419,102540.0,102530.0,1.155535]
[1738148215666,0.80916419,102540.0,102530.0,1.23605977]
[1738148216589,0.80916419,102540.0,102530.0,1.20868919]
[1738148217203,0.80916419,102540.0,102530.0,1.20040919]
[1738148217333,0.80916419,102540.0,102530.0,1.20868919]
[1738148221195,0.80916419,102540.0,102530.0,1.20040919]
[1738148221397,0.80916419,102540.0,102530.0,1.18868919]
[1738148221548,0.88906419,102540.0,102530.0,1.15827864]
[1738148221874,0.88906419,102540.0,102530.0,1.00827864]
[1738148222076,0.88906419,102540.0,102530.0,1.15827864]
[1738148222444,0.88906419,102540.0,102530.0,1.00827864]
[1738148222850,0.88906419,102540.0,102530.0,1.15827864]
[1738148223151,0.88906419,102540.0,102530.0,1.18856606]
[1738148223549,0.88906419,102540.0,102530.0,1.18028606]
[1738148223762,0.93526419,102540.0,102530.0,1.0778871]
[1738148223967,0.93526419,102540.0,102530.0,1.04759968]
[1738148224161,0.93526419,102540.0,102530.0,1.0376045]
[1738148224618,0.93526419,102540.0,102530.0,1.0366045]
[1738148224865,0.93526419,102540.0,102530.0,1.12428346]
[1738148225086,0.93526419,102540.0,102530.0,1.11828346]
[1738148225323,0.93526419,102540.0,102530.0,1.11000346]
[1738148225501,0.93526419,102540.0,102530.0,1.12128346]
[1738148233495,0.93526419,102540.0,102530.0,1.11000346]
[1738148233777,0.93526419,102540.0,102530.0,1.11828346]
[1738148233988,0.93526419,102540.0,102530.0,1.11000346]
[1738148234240,0.93526419,102540.0,102530.0,1.14128346]
[1738148234492,0.80916419,102540.0,102530.0,1.17157671]
[1738148234721,0.80916419,102540.0,102530.0,1.17257671]
[1738148234967,0.80916419,102540.0,102530.0,1.17657671]
[1738148240900,0.88806419,102540.0,102530.0,1.17657671]
[1738148242156,0.88806419,102540.0,102530.0,1.15357671]
[1738148242659,0.88806419,102540.0,102530.0,1.12344639]
[1738148244491,0.88806419,102540.0,102530.0,1.06589775]
[1738148244738,0.80916419,102540.0,102530.0,1.14644639]
[1738148246137,0.73598631,102540.0,102530.0,1.14244639]